lending/lending_fUSD_20241228
["ID","MTS","AMOUNT","RATE_DAILY","PERIOD"]
[346931245,1735393833604,-500.0,0.00012126,2]
[346931246,1735393833613,-500.0,0.00012126,2]
[346931247,1735393833624,-500.0,0.00012126,2]
[346931248,1735393833634,-607.07,0.00012126,2]
[346931249,1735393833645,-851.01,0.00012126,2]
[346931250,1735393833655,-500.0,0.00012126,2]
[346931251,1735393833666,-593.86,0.00012126,2]
[346931252,1735393833677,-301.52,0.00012126,2]
[346931253,1735393833688,-500.0,0.00012126,2]
[346931254,1735393833699,-500.0,0.00012126,2]
[346931255,1735393833710,-500.0,0.00012126,2]
[346931256,1735393833720,-500.0,0.00012126,2]
[346931257,1735393833731,-500.0,0.00012126,2]
[346931258,1735393833741,-500.0,0.00012126,2]
[346931259,1735393833751,-500.0,0.00012126,2]
[346931260,1735393833762,-500.0,0.00012126,2]
[346931261,1735393833772,-500.0,0.00012126,2]
[346931262,1735393833782,-614.83,0.00012126,2]
[346931263,1735393833792,-1150.57,0.00012126,2]
[346931264,1735393833803,-420.21,0.00012126,2]
[346931265,1735393833813,-1527.92,0.00012126,2]
[346931266,1735393833823,-500.0,0.00012126,2]
[346931267,1735393833833,-500.0,0.00012126,2]
[346931268,1735393833845,-640.49,0.00012126,2]
[346931269,1735393833855,-500.0,0.00012126,2]
[346931270,1735393833865,-573.13,0.00012126,2]
[346931271,1735393833874,-500.0,0.00012126,2]
[346931272,1735393833884,-500.0,0.00012126,2]
[346931273,1735393833894,-500.0,0.00012126,2]
[346931274,1735393833904,-500.0,0.00012126,2]
[346931275,1735393833914,-500.0,0.00012126,2]
[346931276,1735393833925,-500.0,0.00012126,2]
[346931277,1735393833935,-500.0,0.00012126,2]
[346931278,1735393833945,-500.0,0.00012126,2]
[346931279,1735393833955,-500.0,0.00012126,2]
[346931280,1735393833965,-328.50995158,0.00012126,2]
[346931281,1735393833976,-500.0,0.00012126,2]
[346931282,1735393833985,-500.0,0.00012126,2]
[346931283,1735393833996,-622.47,0.00012126,2]
[346931284,1735393834007,-500.0,0.00012126,2]
[346931285,1735393834018,-500.0,0.00012126,2]
[346931286,1735393834028,-500.0,0.00012126,2]
[346931287,1735393834037,-500.0,0.00012126,2]
[346931288,1735393834047,-116687.09095213,0.00012127,2]
[346931289,1735393834060,-375.38134642,0.00012127,2]
[346931290,1735393834083,-1070.02206066,0.00012127,2]
[346931291,1735393837855,-1729.68845471,0.00012127,2]
[346931292,1735393837911,-650.35,0.00011821,2]
[346931293,1735393837921,-63113.58428212,0.00012127,2]
[346931294,1735393837972,-397.18381818,0.00012127,2]
[346931295,1735393837986,-486.55688448,0.00012127,2]
[346931296,1735393838084,-7053.23970044,0.00012127,2]
[346931297,1735393838096,-905.69999991,0.00012127,2]
[346931298,1735393838107,-737.04753722,0.00012127,2]
[346931299,1735393838119,-95092.03692471,0.00012127,2]
[346931300,1735393838130,-4212.71697305,0.00012127,2]
[346931301,1735393838142,-260.76800281,0.00012127,2]
[346931302,1735393838154,-771.95368153,0.00012127,2]
[346931303,1735393838166,-470.91773345,0.00012127,2]
[346931304,1735393838184,-31274.87494545,0.00012127,2]
[346931305,1735393838195,-5318.82570269,0.00012127,2]
[346931322,1735393839935,-650.35,0.00012095,2]
[346931323,1735393839945,-20684.0867054,0.00012127,2]
[346931324,1735393839956,-967.59180698,0.00012127,2]
[346931325,1735393839967,-499.625999,0.00012127,2]
[346931326,1735393840104,-1950.02,0.00012127,2]
[346931327,1735393840164,-1600.65,0.00012127,2]
[346931328,1735393840175,-66861.03291069,0.00012127,2]
[346931329,1735393840186,-48051.17302954,0.00012127,2]
[346931330,1735393840197,-3216.299829,0.00012127,2]
[346931331,1735393840232,-434.71481276,0.00012127,2]
[346931349,1735393843028,-569.12,0.00012126,2]
[346931350,1735393843037,-156.09967327,0.00012127,2]
[346931351,1735393843086,-7499.2078334,0.00012127,2]
[346931352,1735393843096,-344.41763169,0.00012193,2]
[346931353,1735393843107,-503.64223988,0.00012193,2]
[346931354,1735393843116,-500.0,0.00012193,2]
[346931355,1735393843125,-214.08722037,0.00012193,2]
[346931356,1735393843144,-285.91277963,0.00012193,2]
[346931357,1735393843154,-500.0,0.00012193,2]
[346931358,1735393843163,-369.36312963,0.00012193,2]
[346931362,1735393845903,-136.50687037,0.00012193,2]
[346931363,1735393845913,-500.0,0.00012193,2]
[346931364,1735393845922,-1457.08994963,0.00012194,2]
[346931365,1735393845934,-1960.0,0.00012194,2]
[346931367,1735393845945,-1716.20005037,0.00012194,2]
[346931369,1735393845954,-653.82,0.00012194,2]
[346931371,1735393845965,-638.37,0.00012194,2]
[346931373,1735393845974,-292.60994963,0.00012194,2]
[346931384,1735393846068,-207.39005037,0.00012194,2]
[346931386,1735393846077,-413.02821473,0.00012194,2]
[346931388,1735393846089,-811.75178527,0.00012194,2]
[346931390,1735393846098,-500.0,0.00012195,2]
[346931393,1735393846109,-500.0,0.00012195,2]
[346931395,1735393846118,-1449.95,0.00012195,2]
[346931396,1735393846127,-561.71,0.00012195,2]
[346931397,1735393846136,-2932.82,0.00012195,2]
[346931398,1735393846146,-453.22030648,0.00012195,2]
[346931399,1735393846157,-476.03969352,0.00012195,2]
[346931400,1735393846165,-1531.78,0.00012195,2]
[346931401,1735393846174,-500.0,0.00012195,2]
[346931402,1735393846183,-966.81,0.00012195,2]
[346931403,1735393846192,-500.0,0.00012195,2]
[346931404,1735393846201,-854.16,0.00012195,2]
[346931405,1735393846210,-667.23,0.00012195,2]
[346931406,1735393846223,-2134.64,0.00012195,2]
[346931407,1735393846231,-500.0,0.00012195,2]
[346931408,1735393846240,-500.0,0.00012226,2]
[346931409,1735393846250,-530.27293503,0.00012226,2]
[346931410,1735393846260,-100226.638,0.00012227,2]
[346931411,1735393846269,-452.61,0.00012313,2]
[346931412,1735393846278,-500.0,0.00012327,2]
[346931413,1735393846287,-811.3,0.00012327,2]
[346931414,1735393846297,-1124.61,0.00012327,2]
[346931415,1735393846306,-500.0,0.00012327,2]
[346931416,1735393846315,-556.48,0.00012327,2]
[346931417,1735393846324,-1052.64,0.00012327,2]
[346931418,1735393846333,-1756.56,0.00012327,2]
[346931419,1735393846343,-1897.5,0.00012327,2]
[346931420,1735393846352,-9496.77,0.00012327,2]
[346931421,1735393846362,-810.7,0.00012327,2]
[346931422,1735393846372,-692.58,0.00012327,2]
[346931423,1735393846381,-500.0,0.00012328,2]
[346931424,1735393846391,-500.0,0.00012328,2]
[346931425,1735393846401,-150.0,0.00012337,2]
[346931426,1735393846410,-150.0,0.00012337,2]
[346931427,1735393846420,-367.353,0.0001235,2]
[346931428,1735393846429,-1765.12811347,0.00012368,2]
[346931429,1735393846438,-1000.0,0.00012369,2]
[346931430,1735393846447,-754.09,0.00012369,2]
[346931431,1735393846456,-650.35,0.00012369,2]
[346931432,1735393846466,-151.30906281,0.00012399,2]
[346931433,1735393846475,-151.3090628,0.00012399,2]
[346931434,1735393846484,-500.0,0.000124,2]
[346931435,1735393846493,-500.0,0.000124,2]
[346931436,1735393846502,-272.17,0.000124,2]
[346931437,1735393846511,-500.0,0.000124,2]
[346931438,1735393846520,-500.0,0.000124,2]
[346931439,1735393846529,-851.01,0.000124,2]
[346931440,1735393846538,-500.0,0.000124,2]
[346931441,1735393846547,-500.0,0.000124,2]
[346931442,1735393846556,-500.0,0.000124,2]
[346931443,1735393846565,-500.0,0.000124,2]
[346931444,1735393846574,-500.0,0.000124,2]
[346931445,1735393846583,-500.0,0.000124,2]
[346931446,1735393846592,-500.0,0.000124,2]
[346931447,1735393846601,-500.0,0.000124,2]
[346931448,1735393846613,-500.0,0.000124,2]
[346931449,1735393846622,-500.0,0.000124,2]
[346931450,1735393846631,-1150.57,0.000124,2]
[346931451,1735393846640,-1527.92,0.000124,2]
[346931452,1735393846649,-500.0,0.000124,2]
[346931453,1735393846658,-500.0,0.000124,2]
[346931454,1735393846667,-500.0,0.000124,2]
[346931455,1735393846676,-640.49,0.000124,2]
[346931456,1735393846684,-500.0,0.000124,2]
[346931457,1735393846694,-573.13,0.000124,2]
[346931458,1735393846703,-266.04,0.000124,2]
[346931459,1735393846712,-500.0,0.000124,2]
[346931460,1735393846722,-500.0,0.000124,2]
[346931461,1735393846731,-500.0,0.000124,2]
[346931462,1735393846740,-500.0,0.000124,2]
[346931463,1735393846750,-500.0,0.000124,2]
[346931464,1735393846759,-500.0,0.000124,2]
[346931465,1735393846768,-500.0,0.000124,2]
[346931466,1735393846778,-500.0,0.000124,2]
[346931467,1735393846787,-622.47,0.000124,2]
[346931468,1735393846796,-500.0,0.000124,2]
[346931469,1735393846805,-500.0,0.000124,2]
[346931470,1735393846814,-252.18,0.000124,2]
[346931471,1735393846823,-382.70942028,0.000124,2]
[346931472,1735393847050,-117.29057972,0.000124,2]
[346931473,1735393847059,-569.12,0.000124,2]
[346931474,1735393847069,-419.1911463,0.00012467,2]
[346931475,1735393847081,-80.8088537,0.00012467,2]
[346931476,1735393847090,-500.0,0.00012467,2]
[346931477,1735393847099,-500.0,0.00012467,2]
[346931478,1735393847110,-500.0,0.00012467,2]
[346931479,1735393847119,-500.0,0.00012468,2]
[346931480,1735393847128,-500.0,0.00012468,2]
[346931481,1735393847322,-500.0,0.00012468,2]
[346931482,1735393847332,-498.61,0.00012468,2]
[346931483,1735393847342,-1380.99,0.00012468,2]
[346931484,1735393847351,-500.0,0.00012468,2]
[346931485,1735393847361,-500.0,0.00012468,2]
[346931486,1735393847371,-500.0,0.00012468,2]
[346931487,1735393847379,-1948.91,0.00012468,2]
[346931488,1735393847389,-500.0,0.00012468,2]
[346931489,1735393847399,-823.39,0.00012468,2]
[346931490,1735393847408,-500.0,0.00012468,2]
[346931491,1735393847417,-742.34,0.00012468,2]
[346931492,1735393847427,-500.0,0.00012468,2]
[346931493,1735393847436,-585.3,0.00012468,2]
[346931494,1735393847445,-232.6511463,0.00012468,2]
[346931495,1735393890805,150.0,0.00017789,120]
[346931496,1735393902511,806.89633473,0.00021917,120]
[346931498,1735394194161,829.89,9.325e-05,2]
[346931511,1735394781181,2026.82,0.00021917,120]
[346931512,1735394781418,2026.82,0.00021917,120]
[346931513,1735394781657,2026.82,0.00021917,120]
[346931514,1735394781888,2026.82,0.00021917,120]
[346931515,1735394782155,2026.82,0.00021917,120]
[346931516,1735394782404,2026.82,0.00021917,120]
[346931517,1735394782770,2026.82,0.00021917,120]
[346931518,1735394783036,2026.82,0.00021917,120]
[346931519,1735394783284,2026.82,0.00021917,120]
[346931520,1735394783536,2026.82,0.00021917,120]
[346931521,1735394783798,2026.82,0.00021917,120]
[346931522,1735394784127,2026.82,0.00021917,120]
[346931523,1735394784374,2026.82,0.00021917,120]
[346931524,1735394784618,2026.82,0.00021917,120]
[346931525,1735394784879,2026.82,0.00021917,120]
[346931526,1735394785128,2026.82,0.00021917,120]
[346931527,1735394785382,2026.82,0.00021917,120]
[346931528,1735394785639,2026.82,0.00021917,120]
[346931529,1735394785885,2026.82,0.00021917,120]
[346931530,1735394786139,2026.82,0.00021917,120]
[346931531,1735394786403,2026.82,0.00021917,120]
[346931532,1735394786646,2026.82,0.00021917,120]
[346931533,1735394786905,2026.82,0.00021917,120]
[346931534,1735394787414,2027.02355149,0.00021917,120]
[346931553,1735395021715,1302.29,0.00022999,120]
[346931554,1735395022901,1302.29,0.00022999,120]
[346931555,1735395023291,675.9,0.00022999,120]
[346931556,1735395023571,1302.29,0.00022999,120]
[346931557,1735395024133,675.9,0.00022999,120]
[346931558,1735395024250,1302.29,0.00022999,120]
[346931559,1735395025682,1302.29,0.00022999,120]
[346931560,1735395025716,675.9,0.00022999,120]
[346931561,1735395026382,675.9,0.00022999,120]
[346931562,1735395026416,1302.29,0.00022999,120]
[346931563,1735395027065,675.9,0.00022999,120]
[346931564,1735395027140,1302.29,0.00022999,120]
[346931565,1735395027956,675.9,0.00022999,120]
[346931566,1735395028496,1302.29,0.00022999,120]
[346931567,1735395028907,675.9,0.00022999,120]
[346931568,1735395029214,500.0,0.00022999,120]
[346931569,1735395029286,1302.29,0.00022999,120]
[346931570,1735395029860,675.9,0.00022999,120]
[346931571,1735395031285,500.0,0.00022999,120]
[346931572,1735395031519,1302.29,0.00022999,120]
[346931574,1735395032300,500.0,0.00022999,120]
[346931575,1735395032315,-167.34,0.00010137,2]
[346931576,1735395032327,-226.05757229,0.00010779,2]
[346931577,1735395032375,-2424.09499345,0.00010779,2]
[346931578,1735395032388,-2650.15256572,0.00010806,2]
[346931579,1735395032399,-2650.15256572,0.00010833,2]
[346931580,1735395032410,-1000.0,0.00010879,2]
[346931581,1735395032422,-271.56,0.00010926,2]
[346931582,1735395032433,-250.0,0.00010933,2]
[346931583,1735395032444,-153.0,0.00011034,2]
[346931584,1735395032455,-153.0,0.00011035,2]
[346931585,1735395032467,-153.0,0.00011035,2]
[346931586,1735395032478,-153.0,0.00011046,2]
[346931587,1735395032490,-153.0,0.00011046,2]
[346931588,1735395032502,-153.0,0.00011047,2]
[346931589,1735395032513,-153.0,0.00011047,2]
[346931590,1735395032525,-153.0,0.00011058,2]
[346931591,1735395032536,-153.0,0.00011059,2]
[346931592,1735395032547,-153.0,0.00011059,2]
[346931593,1735395032558,-250.0,0.00011065,2]
[346931594,1735395032570,-153.0,0.0001107,2]
[346931595,1735395032583,-153.0,0.0001107,2]
[346931596,1735395032597,-153.0,0.00011071,2]
[346931597,1735395032610,-153.0,0.00011071,2]
[346931598,1735395032621,-1034.5,0.00011087,2]
[346931599,1735395032633,-27702.89,0.00011118,2]
[346931600,1735395032644,-150.99,0.00011119,2]
[346931601,1735395032656,-284.22,0.00011288,2]
[346931602,1735395032667,-829.89,0.00011589,2]
[346931603,1735395032679,-166.86,0.00011634,2]
[346931605,1735395032690,-150.0,0.00011667,2]
[346931606,1735395032701,-150.0,0.00011681,2]
[346931607,1735395032713,-150.0,0.00011688,2]
[346931608,1735395032724,-150.0,0.00011688,2]
[346931609,1735395032736,-150.0,0.00011806,2]
[346931610,1735395032750,-800.0,0.000119,4]
[346931611,1735395032762,-200.0,0.0001191,2]
[346931612,1735395032774,-150.0,0.00011921,2]
[346931613,1735395032786,-1300.0,0.00011972,2]
[346931614,1735395032798,-500.0,0.00011972,2]
[346931615,1735395032809,-450.0,0.00012,2]
[346931616,1735395032819,-1700.0,0.00012,4]
[346931617,1735395032829,-2600.0,0.000121,4]
[346931618,1735395032839,-500.0,0.00012126,2]
[346931619,1735395032851,-500.0,0.00012126,2]
[346931620,1735395032863,-14.74800517,0.00012126,2]
[346931621,1735395032877,-485.25199483,0.00012126,2]
[346931622,1735395032888,-500.0,0.00012126,2]
[346931623,1735395032900,-115.74800517,0.00012157,2]
[346931624,1735395032916,-34.25199483,0.00012157,2]
[346931625,1735395032930,-150.0,0.00012192,2]
[346931626,1735395032940,-599.33,0.00012195,2]
[346931627,1735395032950,-585.18,0.00012195,2]
[346931628,1735395032961,-500.0,0.00012195,2]
[346931629,1735395032971,-1122.71,0.00012195,2]
[346931630,1735395032981,-500.0,0.00012195,2]
[346931631,1735395032992,-1000.0,0.00012195,2]
[346931632,1735395033003,-250.51977496,0.00012195,2]
[346931633,1735395033043,500.0,0.00022999,120]
[346931634,1735395033069,-409.31022504,0.00012195,2]
[346931635,1735395033080,-500.0,0.00012195,2]
[346931636,1735395033092,-894.23,0.00012195,2]
[346931637,1735395033102,-938.66,0.00012195,2]
[346931638,1735395033114,-3500.0,0.000122,4]
[346931639,1735395033125,-4951.6813,0.00012227,2]
[346931640,1735395033139,-1000.0,0.00012239,2]
[346931641,1735395033157,-150.0,0.00012271,2]
[346931642,1735395033169,-150.0,0.00012275,2]
[346931643,1735395033182,-271.56,0.00012291,2]
[346931644,1735395033194,-1351.6512,0.000123,2]
[346931645,1735395033207,-4400.0,0.000123,4]
[346931646,1735395033218,-150.0,0.00012337,2]
[346931647,1735395033230,-3000.0,0.0001234,2]
[346931648,1735395033241,-372.964,0.0001235,2]
[346931649,1735395033253,-151.3090628,0.00012399,2]
[346931650,1735395033279,-500.0,0.00012399,2]
[346931651,1735395033295,-500.0,0.00012399,2]
[346931652,1735395033308,-546.27,0.00012399,2]
[346931653,1735395033321,-500.0,0.00012399,2]
[346931654,1735395033335,-500.0,0.00012399,2]
[346931655,1735395033348,-210.30316654,0.00012399,2]
[346931656,1735395033360,-282.85816596,0.00012399,2]
[346931657,1735395033377,-282.56183404,0.00012399,2]
[346931658,1735395033389,-340.93125596,0.00012399,2]
[346931659,1735395033404,-159.06874404,0.00012399,2]
[346931660,1735395033416,-507.66,0.00012399,2]
[346931661,1735395033428,-500.0,0.00012399,2]
[346931662,1735395033440,-21.07125596,0.00012399,2]
[346931663,1735395033454,-478.92874404,0.00012399,2]
[346931664,1735395033465,-501.83,0.00012399,2]
[346931665,1735395033477,-643.3,0.00012399,2]
[346931666,1735395033489,-500.0,0.00012399,2]
[346931667,1735395033502,-500.0,0.00012399,2]
[346931668,1735395033513,-500.0,0.00012399,2]
[346931669,1735395033525,-500.0,0.00012399,2]
[346931670,1735395033537,-500.0,0.00012399,2]
[346931671,1735395033549,-500.0,0.00012399,2]
[346931672,1735395033561,-500.0,0.00012399,2]
[346931673,1735395033572,-500.0,0.00012399,2]
[346931674,1735395033584,-500.0,0.00012399,2]
[346931675,1735395033595,-500.0,0.00012399,2]
[346931676,1735395033607,-352.66,0.00012399,2]
[346931677,1735395033619,-500.0,0.00012399,2]
[346931678,1735395033631,-153.67519094,0.00012399,2]
[346931679,1735395033643,-263.05768315,0.00012399,2]
[346931680,1735395033656,-236.94231685,0.00012399,2]
[346931681,1735395033667,-1867.7,0.00012399,2]
[346931682,1735395033679,-500.0,0.00012399,2]
[346931683,1735395033690,-780.1,0.00012399,2]
[346931684,1735395033701,-500.0,0.00012399,2]
[346931685,1735395033713,-500.0,0.00012399,2]
[346931686,1735395033725,-639.14,0.00012399,2]
[346931687,1735395033735,-500.0,0.00012399,2]
[346931688,1735395033752,-252.51,0.00012399,2]
[346931689,1735395033764,-476.05733937,0.00012399,2]
[346931690,1735395033776,-500.0,0.00012399,2]
[346931691,1735395033789,-2890.56,0.00012399,2]
[346931692,1735395033801,-789.08,0.00012399,2]
[346931693,1735395033813,-500.0,0.00012399,2]
[346931694,1735395033826,-500.0,0.00012399,2]
[346931695,1735395033837,-500.0,0.00012399,2]
[346931696,1735395033850,-500.0,0.00012399,2]
[346931697,1735395033862,-500.0,0.00012399,2]
[346931698,1735395033874,-2198.67,0.00012399,2]
[346931699,1735395033885,-16.24034378,0.00012399,2]
[346931700,1735395033927,500.0,0.00022999,120]
[346931701,1735395033949,-483.75965622,0.00012399,2]
[346931702,1735395033961,-500.0,0.00012399,2]
[346931703,1735395033973,-711.41,0.00012399,2]
[346931704,1735395033984,-500.0,0.00012399,2]
[346931705,1735395033996,-500.0,0.00012399,2]
[346931706,1735395034007,-500.0,0.00012399,2]
[346931707,1735395034018,-525.37,0.00012399,2]
[346931708,1735395034030,-357.12785604,0.00012399,2]
[346931709,1735395034042,-1054.69,0.00012399,2]
[346931710,1735395034053,-236.43978657,0.00012399,2]
[346931711,1735395034064,-1400.59,0.00012399,2]
[346931712,1735395034075,-500.0,0.00012399,2]
[346931713,1735395034086,-500.0,0.00012399,2]
[346931714,1735395034097,-855.6,0.00012399,2]
[346931715,1735395034107,-500.0,0.00012399,2]
[346931716,1735395034119,-500.0,0.00012399,2]
[346931717,1735395034130,-587.11,0.00012399,2]
[346931718,1735395034142,-500.0,0.00012399,2]
[346931719,1735395034154,-367.63,0.00012399,2]
[346931720,1735395034164,-500.0,0.00012399,2]
[346931721,1735395034176,-500.0,0.00012399,2]
[346931722,1735395034187,-1323.45,0.00012399,2]
[346931723,1735395034198,-500.0,0.00012399,2]
[346931724,1735395034209,-500.0,0.00012399,2]
[346931725,1735395034220,-582.23,0.00012399,2]
[346931726,1735395034231,-500.0,0.00012399,2]
[346931727,1735395034246,-500.0,0.00012399,2]
[346931728,1735395034257,-4202.81,0.00012399,2]
[346931729,1735395034268,-500.0,0.00012399,2]
[346931730,1735395034280,-559.67,0.00012399,2]
[346931731,1735395034291,-570.6,0.00012399,2]
[346931732,1735395034302,-526.11,0.00012399,2]
[346931733,1735395034313,-500.0,0.00012399,2]
[346931734,1735395034324,-476.07,0.00012399,2]
[346931735,1735395034335,-500.0,0.00012399,2]
[346931736,1735395034346,-500.0,0.00012399,2]
[346931737,1735395034358,-500.0,0.00012399,2]
[346931738,1735395034369,-70442.67787888,0.000124,2]
[346931739,1735395034424,500.0,0.00022999,120]
[346931740,1735395034465,1302.29,0.00022999,120]
[346931741,1735395034517,675.9,0.00022999,120]
[346931742,1735395034602,500.0,0.00022999,120]
[346931743,1735395034664,500.0,0.00022999,120]
[346931744,1735395034705,500.0,0.00022999,120]
[346931745,1735395035242,500.0,0.00022999,120]
[346931746,1735395035365,1231.54,0.00022999,120]
[346931747,1735395035408,456.38,0.00022999,120]
[346931748,1735395035442,500.0,0.00022999,120]
[346931749,1735395035477,1231.54,0.00022999,120]
[346931750,1735395035507,500.0,0.00022999,120]
[346931751,1735395035536,675.9,0.00022999,120]
[346931752,1735395035566,1231.54,0.00022999,120]
[346931753,1735395035596,1302.29,0.00022999,120]
[346931754,1735395035627,500.0,0.00022999,120]
[346931755,1735395035660,675.9,0.00022999,120]
[346931756,1735395035706,1302.29,0.00022999,120]
[346931757,1735395035737,500.0,0.00022999,120]
[346931758,1735395035767,500.0,0.00022999,120]
[346931759,1735395035967,1231.54,0.00022999,120]
[346931760,1735395035998,675.9,0.00022999,120]
[346931761,1735395036031,1302.29,0.00022999,120]
[346931762,1735395037138,500.0,0.00022999,120]
[346931763,1735395037168,500.0,0.00022999,120]
[346931764,1735395037498,1302.29,0.00022999,120]
[346931765,1735395037608,675.9,0.00022999,120]
[346931766,1735395037721,544.67561316,0.00022999,120]
[346931767,1735395037751,500.0,0.00022999,120]
[346931768,1735395037780,1231.54,0.00022999,120]
[346931774,1735395038099,1302.29,0.00022999,120]
[346931788,1735395038227,675.9,0.00022999,120]
[346931798,1735395038309,500.0,0.00022999,120]
[346931801,1735395038340,1231.54,0.00022999,120]
[346931804,1735395038549,1302.29,0.00022999,120]
[346931817,1735395038683,675.9,0.00022999,120]
[346931820,1735395038717,500.0,0.00022999,120]
[346931821,1735395039043,1231.54,0.00022999,120]
[346931822,1735395039914,1302.29,0.00022999,120]
[346931825,1735395040050,675.9,0.00022999,120]
[346931826,1735395040089,500.0,0.00022999,120]
[346931827,1735395040328,1231.54,0.00022999,120]
[346931828,1735395040428,-664.41871925,0.000124,2]
[346931849,1735395040752,500.0,0.00022999,120]
[346931870,1735395040934,1231.54,0.00022999,120]
[346931881,1735395041028,675.9,0.00022999,120]
[346931891,1735395041109,1302.29,0.00022999,120]
[346931926,1735395041435,1231.54,0.00022999,120]
[346931932,1735395041486,500.0,0.00022999,120]
[346931955,1735395041694,675.9,0.00022999,120]
[346931971,1735395041830,1302.29,0.00022999,120]
[346932067,1735395042703,1231.54,0.00022999,120]
[346932074,1735395042846,500.0,0.00022999,120]
[346932130,1735395043202,287.79,0.00022999,120]
[346932138,1735395043233,675.9,0.00022999,120]
[346932161,1735395043430,-2106.69668075,0.000124,2]
[346932170,1735395043505,1302.29,0.00022999,120]
[346932205,1735395043812,1231.54,0.00022999,120]
[346932208,1735395043928,500.0,0.00022999,120]
[346932209,1735395043994,675.9,0.00022999,120]
[346932219,1735395044376,9101.08,0.00022999,120]
[346932220,1735395044408,1302.29,0.00022999,120]
[346932221,1735395044586,1231.54,0.00022999,120]
[346932222,1735395044639,500.0,0.00022999,120]
[346932223,1735395044885,675.9,0.00022999,120]
[346932224,1735395045038,9101.08,0.00022999,120]
[346932225,1735395045349,500.0,0.00022999,120]
[346932226,1735395045398,257.18,0.00022999,120]
[346932227,1735395045528,1302.29,0.00022999,120]
[346932228,1735395045561,1231.54,0.00022999,120]
[346932229,1735395045677,675.9,0.00022999,120]
[346932230,1735395045745,9101.08,0.00022999,120]
[346932231,1735395045971,500.0,0.00022999,120]
[346932233,1735395046272,1302.32353848,0.00022999,120]
[346932234,1735395046303,1231.54,0.00022999,120]
[346932235,1735395046316,-368.47011836,0.000124,2]
[346932236,1735395046345,675.9,0.00022999,120]
[346932237,1735395046357,-176417.73660276,0.000124,2]
[346932238,1735395046368,-500.0,0.000124,2]
[346932239,1735395046378,-500.0,0.000124,2]
[346932240,1735395046387,-319.13,0.000124,2]
[346932241,1735395046396,-500.0,0.000124,2]
[346932242,1735395046405,-800.0,0.000124,4]
[346932243,1735395046415,-368.54387616,0.00012433,2]
[346932244,1735395046424,-10369.8487444,0.00012434,2]
[346932245,1735395046455,9101.08,0.00022999,120]
[346932246,1735395046722,500.0,0.00022999,120]
[346932247,1735395046826,1231.54,0.00022999,120]
[346932248,1735395046901,675.95773468,0.00022999,120]
[346932249,1735395047074,9101.08,0.00022999,120]
[346932250,1735395047785,1231.54,0.00022999,120]
[346932251,1735395047823,500.0,0.00022999,120]
[346932252,1735395048152,9101.08,0.00022999,120]
[346932253,1735395049126,500.0,0.00022999,120]
[346932254,1735395049316,1231.54,0.00022999,120]